bitfinex/quotes_SOLUSD_20240729
["timestamp","ask_amount","ask_price","bid_price","bid_amount"]
[1722264911370,5.3177,188.05,187.98,5.3196]
[1722264911589,5.3182,188.04,187.97,20.0]
[1722264911777,5.3182,188.04,187.96,15.5879]
[1722264911778,29.3022,188.08,187.96,15.5879]
[1722264911980,5.3186,188.02,187.96,15.5879]
[1722264912191,13.2944,188.05,187.96,15.5879]
[1722264912395,27.55,188.02,187.96,15.5879]
[1722264912695,5.3199,187.98,187.96,15.5879]
[1722264913476,5.3199,187.97,187.91,22.7361]
[1722264914296,5.3197,187.98,187.91,28.0576]
[1722264914499,5.3198,187.98,187.91,28.0575]
[1722264914800,5.32,187.97,187.91,22.7361]
[1722264914991,56.8566,188.02,187.91,22.7361]
[1722264914992,5.3195,187.99,187.93,5.3211]
[1722264915303,43.56,188.02,187.92,5.3213]
[1722264915471,5.3197,187.98,187.91,22.7361]
[1722264915669,5.3188,188.01,187.91,22.7361]
[1722264915879,5.3192,188.0,187.91,22.7361]
[1722264916092,43.56,188.02,187.91,28.0576]
[1722264916292,27.55,188.02,187.91,22.7361]
[1722264916469,5.32,187.97,187.91,22.7361]
[1722264916672,40.8467,188.02,187.91,22.7361]
[1722264916900,27.55,187.98,187.91,22.7361]
[1722264917100,43.56,187.98,187.91,16.2046]
[1722264917292,5.3216,187.92,187.86,22.696]
[1722264917595,29.4806,187.97,187.86,22.696]
[1722264918271,5.3214,187.92,187.86,22.696]
[1722264918475,5.322,187.9,187.86,22.696]
[1722264919095,27.55,187.94,187.86,22.696]
[1722264919298,5.3212,187.93,187.86,28.019]
[1722264919602,5.3215,187.92,187.86,22.696]
[1722264919991,27.55,187.94,187.86,28.019]
[1722264920192,5.3212,187.93,187.87,5.3228]
[1722264920382,5.3212,187.93,187.86,28.019]
[1722264920797,5.3208,187.94,187.86,22.696]
[1722264921099,5.3211,187.93,187.86,28.0189]
[1722264921395,5.3214,187.92,187.86,28.019]
[1722264921594,5.321,187.94,187.87,5.3227]
[1722264921817,5.3212,187.93,187.87,5.3227]
[1722264921980,5.3208,187.95,187.87,5.3227]
[1722264922507,13.3,187.97,187.86,28.019]
[1722264922694,5.3216,187.92,187.86,22.696]
[1722264922891,40.8525,187.94,187.86,22.696]
[1722264923406,5.3234,187.85,187.78,21.1131]
[1722264923806,5.3236,187.84,187.78,15.7878]
[1722264923992,5.324,187.83,187.78,15.7878]
[1722264924621,27.55,187.86,187.78,15.7878]
[1722264924789,5.3243,187.82,187.78,15.7878]
[1722264925521,27.55,187.86,187.78,15.7878]
[1722264925522,5.3245,187.81,187.78,15.7878]
[1722264925821,56.8678,187.86,187.67,5.54539593]
[1722264925822,56.8678,187.86,187.72,16.1249]
[1722264926101,27.55,187.86,187.78,5.3253]
[1722264926277,27.55,187.86,187.72,17.18979131]
[1722264926476,5.3237,187.84,187.72,16.1249]
[1722264926703,5.3239,187.83,187.77,5.3256]
[1722264926885,5.3242,187.82,187.72,16.1249]
[1722264927788,5.3242,187.82,187.75,5.3261]
[1722264927987,5.3242,187.82,187.76,5.3259]
[1722264928196,27.55,187.86,187.77,5.3255]
[1722264928805,5.324,187.83,187.72,16.1249]
[1722264929005,5.324,187.83,187.73,0.17]
[1722264929311,27.55,187.82,187.73,5.3267]
[1722264929615,27.55,187.82,187.72,16.1249]
[1722264929616,5.3259,187.77,187.72,16.1249]
[1722264930108,5.3252,187.79,187.72,21.4519]
[1722264930316,28.67761299,187.9,187.76,5.3258]
[1722264930317,5.3241,187.83,187.76,5.3258]
[1722264930484,43.56,187.86,187.72,16.1249]
[1722264930691,0.17,187.85,187.72,16.1249]
[1722264931288,5.3265,187.74,187.72,16.1249]
[1722264931605,27.55,187.82,187.68,10.6581]
[1722264931606,5.3264,187.75,187.68,10.6581]
[1722264931790,43.56,187.78,187.68,10.6581]
[1722264931990,43.56,187.78,187.66,20.5571]
[1722264932209,5.327,187.73,187.66,20.5571]
[1722264932420,43.56,187.74,187.66,15.2286]
[1722264932623,5.3281,187.69,187.66,15.2286]
[1722264933207,5.3281,187.69,187.62,5.3296]
[1722264933408,29.3271,187.73,187.61,15.0683]
[1722264933622,5.3288,187.66,187.61,15.0683]
[1722264934127,16.01,187.69,187.61,15.0683]
[1722264934644,16.01,187.69,187.54,5.54906231]
[1722264934645,27.55,187.66,187.56,15.0683]
[1722264934807,27.55,187.66,187.58,5.331]
[1722264935137,27.55,187.66,187.56,15.0683]
[1722264935500,27.55,187.66,187.6,5.3304]
[1722264935700,27.55,187.66,187.56,15.0683]
[1722264936002,5.3283,187.68,187.6,5.3304]
[1722264936207,5.3274,187.71,187.64,5.3293]
[1722264936521,16.01,187.73,187.61,5.3299]
[1722264936727,16.01,187.7,187.56,15.0683]
[1722264936905,5.3288,187.66,187.56,15.0683]
[1722264937107,16.01,187.66,187.56,15.0683]
[1722264937307,5.3296,187.63,187.56,20.3997]
[1722264937529,16.01,187.7,187.56,20.3997]
[1722264937834,5.3297,187.63,187.56,15.0683]
[1722264938006,5.3299,187.62,187.56,15.0683]
[1722264938418,16.01,187.65,187.56,15.0683]
[1722264938419,5.3305,187.6,187.56,15.0683]
[1722264938805,16.01,187.65,187.56,15.0683]
[1722264939332,16.01,187.65,187.49,0.7828759]
[1722264939333,5.3316,187.56,187.51,16.5696]
[1722264939626,5.3312,187.58,187.51,16.5696]
[1722264939828,16.01,187.61,187.55,5.3318]
[1722264940029,0.17,187.64,187.51,16.5696]
[1722264940200,5.3307,187.59,187.51,16.5696]
[1722264940405,16.01,187.62,187.51,16.5696]
[1722264940614,5.3316,187.57,187.51,16.5696]
[1722264940911,16.01,187.6,187.51,16.5696]
[1722264941127,5.3311,187.58,187.51,21.9025]
[1722264941432,16.01,187.6,187.51,16.5696]
[1722264941620,5.3314,187.57,187.51,16.5696]
[1722264941810,5.3319,187.55,187.51,16.5696]
[1722264942011,5.3315,187.57,187.51,16.5696]
[1722264942209,16.01,187.61,187.51,16.5696]
[1722264942413,5.3314,187.57,187.5,5.3332]
[1722264942624,16.01,187.59,187.52,5.3326]
[1722264942934,5.3304,187.61,187.54,5.3321]
[1722264943131,16.01,187.63,187.49,0.7828759]
[1722264943323,13.3233,187.65,187.52,5.3327]
[1722264943709,5.3301,187.62,187.49,0.7828759]
[1722264944009,5.3302,187.61,187.54,5.3321]
[1722264944223,16.01,187.61,187.5,15.6401]
[1722264944539,13.3222,187.66,187.5,15.6401]
[1722264944832,13.3222,187.66,187.52,5.3326]
[1722264945130,5.3307,187.6,187.5,15.6401]
[1722264945333,5.3295,187.64,187.57,5.3313]
[1722264945629,16.01,187.64,187.55,5.3316]
[1722264945824,16.01,187.64,187.5,15.6401]
[1722264946030,5.331,187.59,187.5,15.6401]
[1722264946225,5.3306,187.6,187.53,5.3324]
[1722264946525,16.01,187.62,187.54,5.3321]
[1722264946734,5.3305,187.6,187.5,15.6401]
[1722264946910,16.01,187.63,187.54,5.3321]
[1722264947121,5.3302,187.61,187.5,15.6401]
[1722264947307,5.3302,187.61,187.53,5.3323]
[1722264947504,5.3305,187.6,187.53,5.3323]
[1722264947708,5.3302,187.61,187.54,5.3321]
[1722264947933,16.01,187.65,187.5,15.6401]
[1722264948115,5.3299,187.62,187.55,5.3319]
[1722264948316,16.01,187.65,187.5,15.6401]
[1722264948510,5.3303,187.61,187.53,5.3324]
[1722264948812,29.3328,187.65,187.5,15.6401]
[1722264949030,29.3328,187.65,187.51,5.3328]
[1722264949338,29.3328,187.65,187.5,15.6401]
[1722264949643,5.3308,187.59,187.52,5.3325]
[1722264949941,5.3304,187.61,187.53,5.3324]
[1722264950239,16.01,187.65,187.5,16.70640611]
[1722264950441,5.3302,187.61,187.53,5.3322]
[1722264950735,5.3302,187.61,187.5,15.6401]
[1722264950736,16.01,187.63,187.5,15.6401]
[1722264951056,29.3342,187.63,187.51,5.333]
[1722264951237,5.3307,187.59,187.52,5.3327]
[1722264951442,5.331,187.58,187.51,5.333]
[1722264951942,5.331,187.58,187.52,1.06639755]
[1722264952307,29.3342,187.63,187.5,15.6401]
[1722264952518,5.3316,187.57,187.5,20.9732]
[1722264952813,0.17,187.62,187.5,15.6401]
[1722264953016,5.3319,187.55,187.5,15.6401]
[1722264953736,5.3322,187.54,187.5,15.6401]
[1722264953936,29.3362,187.6,187.5,15.6401]
[1722264954232,16.01,187.55,187.5,15.6401]
[1722264954440,16.01,187.55,187.49,0.7828759]
[1722264954441,5.333,187.51,187.49,0.7828759]
[1722264954820,5.3333,187.5,187.49,0.7828759]
[1722264955140,13.3291,187.56,187.49,0.7828759]
[1722264955453,16.01,187.55,187.49,0.7828759]
[1722264955738,13.3284,187.57,187.49,0.7828759]
[1722264956037,5.3329,187.52,187.49,0.7828759]
[1722264956246,5.3333,187.5,187.49,0.7828759]
[1722264957335,5.3328,187.52,187.49,0.7828759]
[1722264957638,16.01,187.55,187.49,0.7828759]
[1722264958146,27.55,187.58,187.49,0.7828759]
[1722264958438,16.01,187.57,187.49,0.7828759]
[1722264958821,5.3333,187.5,187.49,0.7828759]
[1722264959214,21.3424,187.53,187.49,0.7828759]
[1722264959420,5.3333,187.5,187.49,0.7828759]
[1722264959838,5.3321,187.55,187.49,0.7828759]
[1722264960339,27.55,187.74,187.49,0.7828759]
[1722264960647,5.3321,187.54,187.49,0.7828759]
[1722264961029,5.3319,187.55,187.49,0.7828759]
[1722264961235,16.01,187.61,187.49,0.7828759]
[1722264961535,5.3319,187.55,187.49,0.7828759]
[1722264961725,16.01,187.61,187.49,0.7828759]
[1722264962119,5.3317,187.56,187.49,0.7828759]
[1722264962335,5.3317,187.56,187.49,6.1164759]
[1722264962651,5.332,187.55,187.49,0.7828759]
[1722264963129,16.01,187.61,187.49,0.7828759]
[1722264963130,5.3328,187.52,187.49,0.7828759]
[1722264963331,5.333,187.51,187.49,0.7828759]
[1722264963637,5.3333,187.5,187.49,0.7828759]
[1722264963943,16.01,187.55,187.49,0.7828759]
[1722264964120,5.3333,187.5,187.49,0.7828759]
[1722264964647,16.01,187.5,187.36,15.9053]
[1722264964943,49.6122,187.51,187.36,15.9053]
[1722264965119,49.6122,187.51,187.37,5.3367]
[1722264965120,5.3352,187.44,187.37,5.3367]
[1722264965450,5.3353,187.43,187.36,15.9053]
[1722264965746,13.3334,187.5,187.36,15.9053]
[1722264965747,5.336,187.41,187.36,15.9053]
[1722264965917,5.3349,187.45,187.37,5.3369]
[1722264966116,5.3354,187.43,187.36,21.2426]
[1722264966349,13.3359,187.47,187.36,16.97248149]
[1722264966647,13.3359,187.47,187.36,15.9053]
[1722264966814,5.3359,187.41,187.36,15.9053]
[1722264967240,27.55,187.48,187.3,0.7828759]
[1722264967541,27.55,187.48,187.36,13.3429]
[1722264967542,5.3356,187.42,187.36,13.3429]
[1722264967749,7.71227602,187.51,187.36,13.3429]
[1722264968040,42.6772,187.5,187.35,15.3511]
[1722264968214,16.01,187.46,187.35,15.3511]
[1722264968417,20.0,187.53,187.39,5.3363]
[1722264968612,13.3329,187.51,187.39,5.3363]
[1722264968818,5.3347,187.45,187.38,13.3417]
[1722264969021,21.3434,187.5,187.41,13.3395]
[1722264969222,21.46316784,187.55,187.41,13.3395]
[1722264969441,21.46316784,187.55,187.36,1.06692358]
[1722264969442,5.3324,187.53,187.46,5.3342]
[1722264969623,5.3329,187.52,187.45,5.3347]
[1722264969831,5.3332,187.51,187.44,13.3373]
[1722264970027,27.55,187.56,187.46,5.3341]
[1722264970234,13.3273,187.59,187.47,16.2085]
[1722264970449,5.3321,187.55,187.48,5.3338]
[1722264970654,5.3328,187.52,187.47,16.2085]
[1722264970859,13.3273,187.59,187.47,16.2085]
[1722264970860,5.3332,187.51,187.47,16.2085]
[1722264971148,16.01,187.52,187.34,22.1917]
[1722264971350,5.3347,187.46,187.38,5.3366]
[1722264971526,16.01,187.52,187.34,22.1917]
[1722264971527,5.3335,187.5,187.42,5.3355]
[1722264971728,5.3333,187.5,187.43,5.3353]
[1722264971950,5.3333,187.5,187.42,5.3353]
[1722264972159,16.01,187.54,187.39,5.3361]
[1722264972329,16.01,187.48,187.3,16.1243759]
[1722264972531,5.3363,187.4,187.3,16.1243759]
[1722264972836,29.3465,187.46,187.3,17.19187529]
[1722264973055,16.01,187.5,187.3,17.19187529]
[1722264973256,5.3359,187.41,187.34,5.3376]
[1722264973577,16.01,187.48,187.3,17.19187529]
[1722264973755,13.3321,187.52,187.38,13.3416]
[1722264974059,33.9828,187.56,187.39,15.7781]
[1722264974060,16.18,187.55,187.39,15.7781]
[1722264974260,5.3338,187.49,187.39,15.7781]
[1722264974444,16.01,187.51,187.43,5.3353]
[1722264974635,26.6627,187.53,187.37,6.5951]
[1722264974841,27.55,187.52,187.37,6.5951]
[1722264975161,5.3356,187.42,187.37,6.5951]
[1722264975334,5.3352,187.44,187.37,6.5951]
[1722264975541,6.00658894,187.53,187.38,16.83245892]
[1722264975752,27.55,187.59,187.38,16.83245892]
[1722264976068,5.333,187.51,187.38,15.7652]
[1722264976268,16.01,187.53,187.45,5.3347]
[1722264976435,5.3331,187.51,187.43,5.335]
[1722264976760,16.01,187.52,187.38,15.7652]
[1722264976965,13.3306,187.54,187.39,1.06686568]
[1722264977142,27.55,187.5,187.38,15.7652]
[1722264977343,5.3359,187.41,187.38,15.7652]
[1722264977549,5.3356,187.42,187.38,15.7652]
[1722264977755,16.01,187.46,187.38,15.7652]
[1722264978171,5.335,187.44,187.38,15.7652]
[1722264978366,27.55,187.5,187.38,15.7652]
[1722264978666,6.1976,187.47,187.32,16.0632]
[1722264978855,5.337,187.37,187.32,16.0632]
[1722264979055,5.3367,187.38,187.32,16.0632]
[1722264979258,13.3351,187.48,187.34,13.3444]
[1722264979440,13.3351,187.48,187.37,5.3367]
[1722264979441,21.3447,187.45,187.37,5.3367]
[1722264979644,27.55,187.5,187.32,16.0632]
[1722264979952,5.3361,187.41,187.32,16.0632]
[1722264980154,45.0,187.49,187.32,16.0632]
[1722264980155,13.3363,187.46,187.32,16.0632]
[1722264980368,16.01,187.43,187.34,5.3377]
[1722264980543,5.3352,187.44,187.37,5.3369]
[1722264980747,5.3347,187.45,187.38,5.3367]
[1722264980970,5.3347,187.45,187.35,13.3436]
[1722264980971,5.3347,187.45,187.39,5.3364]
[1722264981137,5.3345,187.46,187.39,5.3361]
[1722264981342,15.3659,187.54,187.4,5.3361]
[1722264981343,5.3341,187.47,187.4,5.3361]
[1722264981661,16.01,187.48,187.41,5.3357]
[1722264981662,5.3339,187.48,187.41,5.3357]
[1722264981859,40.88,187.55,187.44,5.335]
[1722264982037,13.33,187.55,187.41,13.3394]
[1722264982363,27.55,187.59,187.46,5.3344]
[1722264982364,5.3327,187.52,187.46,5.3344]
[1722264982571,5.3327,187.52,187.44,13.3373]
[1722264982572,5.3327,187.52,187.45,5.3346]
[1722264982742,13.3245,187.63,187.47,22.0019]
[1722264982942,5.3303,187.61,187.54,5.3321]
[1722264983142,5.3296,187.63,187.49,1.06621981]
[1722264983451,5.33,187.62,187.49,1.06621981]
[1722264983766,16.01,187.64,187.48,21.23614988]
[1722264983964,16.01,187.64,187.48,20.0]
[1722264984343,13.3242,187.63,187.48,20.0]
[1722264984542,5.3317,187.56,187.47,27.3358]
[1722264984742,16.01,187.55,187.47,22.0019]
[1722264984952,5.3325,187.53,187.47,22.0019]
[1722264985179,16.01,187.55,187.47,22.0019]
[1722264985389,5.3325,187.53,187.47,22.0019]
[1722264985563,5.333,187.51,187.47,22.0019]
[1722264986079,16.01,187.52,187.47,15.8304]
[1722264986281,5.3337,187.49,187.47,15.8304]
[1722264986576,16.01,187.51,187.42,6.3893]
[1722264986774,16.01,187.51,187.42,11.7248]
[1722264986990,5.3336,187.49,187.42,6.3893]
[1722264987368,5.3337,187.49,187.42,6.3893]
[1722264987565,27.55,187.53,187.42,6.3893]
[1722264987862,5.3318,187.56,187.43,1.06680046]
[1722264988068,27.55,187.61,187.44,16.0918]
[1722264988373,43.56,187.61,187.44,16.0918]
[1722264988603,27.55,187.57,187.44,16.0918]
[1722264988785,5.332,187.55,187.48,5.3338]
[1722264989089,27.55,187.61,187.44,16.0918]
[1722264989388,5.3314,187.57,187.49,5.3334]
[1722264989557,5.3314,187.57,187.5,5.3332]
[1722264989959,27.55,187.61,187.48,5.3337]
[1722264990179,5.3316,187.57,187.44,16.0918]
[1722264990383,43.56,187.61,187.45,20.0]
[1722264990791,16.01,187.61,187.45,20.0]
[1722264990977,5.3314,187.57,187.46,1.06635188]
[1722264991186,16.01,187.61,187.46,1.06644241]
[1722264991499,16.01,187.62,187.45,20.0]
[1722264991793,5.3309,187.59,187.51,5.3328]
[1722264991993,5.3309,187.59,187.45,21.06641947]
[1722264992201,5.3309,187.59,187.53,5.3324]
[1722264992497,16.01,187.63,187.54,5.3321]
[1722264992793,5.3305,187.6,187.46,1.06636153]
[1722264993006,5.3302,187.61,187.55,5.3318]
[1722264993178,5.3302,187.61,187.53,6.514]
[1722264993179,5.3298,187.63,187.54,15.3832]
[1722264993366,5.3301,187.62,187.55,5.3316]
[1722264993565,43.56,187.65,187.55,5.3316]
[1722264993805,5.3302,187.61,187.54,20.7153]
[1722264993987,43.56,187.65,187.55,5.3318]
[1722264994490,5.3296,187.64,187.57,5.3312]
[1722264994693,27.55,187.65,187.58,5.331]
[1722264994898,32.879,187.65,187.57,5.331]
[1722264995070,32.879,187.65,187.58,5.331]
[1722264995266,27.55,187.65,187.6,5.3302]
[1722264995498,13.3188,187.71,187.6,5.3304]
[1722264995499,5.3288,187.66,187.6,5.3304]
[1722264995990,27.55,187.69,187.6,5.3304]
[1722264996190,27.55,187.69,187.55,1.06587377]
[1722264996392,5.3284,187.68,187.54,15.5532]
[1722264996584,27.55,187.69,187.55,1.23578915]
[1722264996894,27.55,187.69,187.63,5.3295]
[1722264997212,27.55,187.74,187.63,5.3294]
[1722264997492,27.55,187.74,187.55,46.23578915]
[1722264997493,29.3276,187.73,187.55,46.23578915]
[1722264997791,5.3279,187.69,187.63,5.3295]
[1722264997989,27.55,187.74,187.58,6.4313]
[1722264998194,5.3279,187.7,187.59,0.17]
[1722264998400,27.55,187.74,187.58,6.4313]
[1722264998694,16.01,187.73,187.58,6.4313]
[1722264998875,5.3281,187.69,187.62,5.3298]
[1722264999075,5.3273,187.71,187.64,5.329]
[1722264999281,5.327,187.73,187.66,5.3285]
[1722264999493,27.55,187.74,187.58,7.49703818]
[1722264999494,27.55,187.74,187.65,15.4432]
[1722264999705,13.314,187.78,187.66,6.0677]
[1722264999706,27.55,187.78,187.66,6.0677]
[1722264999879,5.3267,187.74,187.67,6.39380233]
[1722265000075,27.55,187.78,187.67,5.3284]
[1722265000076,5.3268,187.73,187.67,5.3284]
[1722265000276,27.55,187.78,187.69,5.3277]
[1722265000576,27.55,187.78,187.66,6.0677]
[1722265000882,40.8606,187.83,187.66,6.0677]
[1722265000883,5.3274,187.71,187.66,6.0677]
[1722265001089,27.55,187.74,187.66,6.0677]
[1722265001470,5.3274,187.71,187.66,6.0677]
[1722265001668,27.55,187.74,187.66,6.0677]
[1722265002282,5.3274,187.71,187.66,6.0677]
[1722265002597,27.55,187.74,187.66,6.0677]
[1722265002598,32.8767,187.74,187.66,6.0677]
[1722265002783,27.55,187.74,187.66,6.0677]
[1722265003187,32.8765,187.74,187.68,5.3279]
[1722265003384,5.3268,187.73,187.66,11.3963]
[1722265003877,5.3272,187.72,187.66,11.3963]
[1722265004398,5.3274,187.71,187.66,6.0677]
[1722265004603,43.56,187.74,187.66,6.0677]
[1722265004799,26.6255,187.79,187.65,15.4432]
[1722265004800,5.3282,187.68,187.65,15.4432]
[1722265005202,5.3286,187.67,187.65,15.4432]
[1722265005497,5.3291,187.65,187.61,6.0871]
[1722265005700,5.3288,187.66,187.61,6.0871]
[1722265005999,5.3284,187.68,187.61,6.0871]
[1722265006198,5.3284,187.68,187.61,11.4171]
[1722265006406,27.55,187.7,187.61,6.0871]
[1722265006606,27.55,187.74,187.61,6.0871]
[1722265006972,32.8765,187.74,187.67,5.3284]
[1722265007296,5.3271,187.72,187.66,5.3287]
[1722265007480,32.8767,187.74,187.61,6.0871]
[1722265007676,32.8765,187.74,187.68,5.3279]
[1722265007887,32.8765,187.74,187.67,5.3284]
[1722265008083,27.55,187.74,187.66,5.3287]
[1722265008283,27.55,187.74,187.61,6.0871]
[1722265008485,5.3286,187.67,187.61,6.0871]
[1722265008696,5.3282,187.68,187.61,6.0871]
[1722265008900,5.3272,187.72,187.65,5.3288]
[1722265009104,5.3274,187.71,187.64,5.3293]
[1722265009279,43.56,187.74,187.61,6.0871]
[1722265009280,5.3271,187.72,187.65,5.329]
[1722265009480,5.3274,187.71,187.64,5.3293]
[1722265009798,5.3273,187.72,187.64,5.3291]
[1722265009987,5.3279,187.69,187.61,6.0871]
[1722265010303,5.3279,187.69,187.63,5.3296]
[1722265010493,5.3282,187.68,187.61,11.417]
[1722265010695,5.3285,187.67,187.61,6.0871]
[1722265010910,27.55,187.66,187.61,6.0871]
[1722265011082,5.3308,187.59,187.56,6.5467]
[1722265011281,5.3302,187.61,187.56,6.5467]
[1722265011614,13.3188,187.71,187.56,6.5467]
[1722265011783,5.3284,187.68,187.61,5.3299]
[1722265012109,13.3205,187.68,187.56,6.5467]
[1722265012278,5.3299,187.62,187.56,11.8782]
[1722265012478,13.3205,187.68,187.56,11.8782]
[1722265012479,54.1827,187.74,187.56,6.5467]
[1722265012688,43.56,187.68,187.56,6.5467]
[1722265013100,5.329,187.66,187.56,6.5467]
[1722265013306,32.8784,187.68,187.57,1.06580224]
[1722265013486,5.3296,187.64,187.57,5.331]
[1722265013695,5.3296,187.63,187.57,5.331]
[1722265013901,43.56,187.68,187.56,6.5467]
[1722265013902,5.3293,187.65,187.58,5.3309]
[1722265014080,43.56,187.68,187.56,6.5467]
[1722265014081,27.55,187.68,187.56,7.6126225]
[1722265014287,27.55,187.68,187.6,5.3304]
[1722265014496,27.55,187.68,187.56,6.5467]
[1722265014698,27.55,187.68,187.59,5.3307]
[1722265014893,5.3289,187.66,187.56,6.5467]
[1722265015086,5.3295,187.64,187.57,5.3313]
[1722265015395,5.3299,187.62,187.56,6.5467]
[1722265015581,43.56,187.68,187.56,6.5467]
[1722265015786,5.3295,187.64,187.56,6.5467]
[1722265015986,5.3293,187.64,187.57,5.331]
[1722265016206,13.3178,187.72,187.61,5.3299]
[1722265016594,5.3285,187.67,187.61,5.3299]
[1722265016801,13.3178,187.72,187.62,5.3298]
[1722265016802,5.3282,187.68,187.62,5.3298]
[1722265017106,5.3275,187.71,187.65,20.5399]
[1722265017283,27.55,187.74,187.65,15.211]
[1722265017284,43.56,187.74,187.65,15.211]
[1722265017679,5.3273,187.71,187.65,15.211]
[1722265017906,5.3276,187.7,187.65,15.211]
[1722265018116,5.3274,187.71,187.65,15.211]
[1722265018403,5.3277,187.7,187.65,15.211]
[1722265018817,5.327,187.73,187.66,6.5355]
[1722265019309,5.327,187.73,187.66,11.8642]
[1722265019507,5.3276,187.7,187.66,6.5355]
[1722265019807,5.3273,187.71,187.66,6.5355]
[1722265020187,56.8755,187.76,187.66,11.8641]
[1722265020492,5.3268,187.73,187.66,11.8642]
[1722265020700,27.55,187.76,187.66,6.5355]
[1722265020701,5.3276,187.7,187.66,6.5355]
[1722265020880,5.3279,187.69,187.66,6.5355]
[1722265021306,16.01,187.75,187.65,15.211]
[1722265021307,5.3287,187.66,187.65,15.211]
[1722265021692,5.3284,187.68,187.65,15.211]
[1722265022090,5.3296,187.63,187.61,6.4958]
[1722265022321,5.329,187.66,187.61,6.4958]
[1722265022612,5.3288,187.66,187.61,6.4958]
[1722265022785,5.3292,187.65,187.61,6.4958]
[1722265022993,5.3288,187.66,187.61,6.4958]
[1722265023402,43.56,187.68,187.61,6.4958]
[1722265023610,5.3296,187.64,187.61,6.4958]
[1722265023818,5.3299,187.62,187.6,16.2122]
[1722265023987,27.55,187.64,187.56,6.6285]
[1722265024184,5.3308,187.59,187.56,6.6285]
[1722265024418,43.56,187.64,187.55,16.1855]
[1722265024594,5.331,187.58,187.55,16.1855]
[1722265024797,5.3307,187.6,187.55,16.1855]
[1722265025185,5.3301,187.62,187.55,16.1855]
[1722265025392,5.33,187.62,187.55,21.5173]
[1722265025591,27.55,187.64,187.55,16.1855]
[1722265026215,43.56,187.64,187.55,16.1855]
[1722265026921,5.331,187.58,187.55,16.1855]
[1722265027215,5.3313,187.57,187.52,6.6285]
[1722265027592,16.01,187.59,187.52,6.6285]
[1722265027790,5.3313,187.57,187.52,6.6285]
[1722265028187,5.331,187.59,187.52,11.9611]
[1722265028592,27.55,187.65,187.53,1.06631888]
[1722265028909,5.3287,187.67,187.52,7.69453906]
[1722265029111,32.8781,187.69,187.61,5.33]
[1722265029318,259.8,187.8,187.61,6.5354]
[1722265029501,5.326,187.76,187.61,6.5354]
[1722265029697,5.326,187.76,187.61,26.5354]
[1722265029922,5.3258,187.77,187.69,5.3278]
[1722265030121,16.01,187.79,187.63,1.06535197]
[1722265030418,27.55,187.8,187.62,20.0]
[1722265030592,15.37643161,187.79,187.62,20.0]
[1722265030798,5.3268,187.73,187.67,5.3284]
[1722265030997,5.3265,187.75,187.67,5.3284]
[1722265031421,5.3268,187.73,187.62,20.0]
[1722265031628,16.01,187.79,187.67,5.3284]
[1722265031802,16.01,187.76,187.61,6.5354]
[1722265032004,5.3262,187.76,187.61,27.60093685]
[1722265032308,16.01,187.79,187.62,66.40533148]
[1722265032507,16.01,187.79,187.62,65.34]
[1722265032807,5.3262,187.75,187.62,20.17]